bitfinex-derivatives/quotes_SOLF0:USTF0_20220110
["timestamp","ask_amount","ask_price","bid_price","bid_amount"]
[1641831539933,5.86153095,136.49,136.46,7.32869183]
[1641831540134,34.69271367,136.6,136.46,27.66479]
[1641831540335,5.86000314,136.52,136.46,27.66479]
[1641831540633,5.86000314,136.52,136.44,27.66479]
[1641831540834,5.86453584,136.42,136.28,4.0]
[1641831541034,7.02887246,136.58,136.3,4.0]
[1641831541035,5.86080858,136.5,136.3,4.0]
[1641831541235,5.86080858,136.5,136.21,4.0]
[1641831541437,5.86550241,136.4,136.24,4.0]
[1641831541637,5.86550241,136.4,136.25,4.0]
[1641831541838,5.86146793,136.49,136.31,4.0]
[1641831542236,5.86146793,136.49,136.28,4.0]
[1641831542237,5.86146793,136.49,136.48,27.66479]
[1641831542436,3.61808527,136.51,136.21,4.0]
[1641831542636,3.61808527,136.51,136.26,4.0]
[1641831542837,3.61808527,136.51,136.3,4.0]
[1641831543037,3.61808527,136.51,136.33,4.0]
[1641831543241,3.61808527,136.51,136.34,4.0]
[1641831543539,3.61808527,136.51,136.37,4.0]
[1641831543737,3.61808527,136.51,136.39,4.0]
[1641831543938,3.61808527,136.51,136.37,4.0]
[1641831544143,3.61808527,136.51,136.49,27.66479]
[1641831544340,3.61808527,136.51,136.49,10.79966398]
[1641831545740,3.61808527,136.51,136.5,8.0]
[1641831545942,4.1470526,136.53,136.5,9.831]
[1641831546141,7.0239939,136.68,136.52,31.66479]
[1641831546343,7.0239939,136.68,136.58,4.0]
[1641831546543,7.0239939,136.68,136.6,7.32144818]
[1641831546750,7.0239939,136.68,136.63,7.31957254]
[1641831546943,7.0239939,136.68,136.66,7.31796561]
[1641831547342,8.42502983,136.74,136.65,4.0]
[1641831547743,10.09625966,136.93,136.65,4.0]
[1641831547944,5.85025115,136.75,136.62,4.0]
[1641831548143,5.85025115,136.75,136.74,55.32958]
[1641831548343,5.84789839,136.81,136.74,55.32958]
[1641831548543,5.84789839,136.81,136.74,62.64353136]
[1641831548743,5.84789839,136.81,136.74,55.32958]
[1641831548945,5.84983411,136.76,136.74,55.32958]
[1641831549347,5.84983411,136.76,136.74,49.47813366]
[1641831549544,7.31876898,136.8,136.74,49.47813366]
[1641831549745,7.01545978,136.85,136.74,49.47813366]
[1641831549946,7.01545978,136.85,136.74,23.57409908]
[1641831550146,7.01545978,136.85,136.82,27.66479]
[1641831550747,7.01545978,136.85,136.8,27.66479]
[1641831550948,14.94187153,136.9,136.8,27.66479]
[1641831551249,7.01532414,136.85,136.76,7.31288164]
[1641831551447,4.14688423,136.67,136.66,5.45436798]
[1641831551746,7.01532414,136.85,136.66,8.0]
[1641831551951,14.94187153,136.9,136.76,4.0]
[1641831552147,7.01096137,136.93,136.89,55.32958]
[1641831552747,7.01096137,136.93,136.88,7.30486869]
[1641831552947,7.01096137,136.93,136.83,7.30753773]
[1641831553147,7.01096137,136.93,136.78,4.0]
[1641831553348,7.01096137,136.93,136.73,1.826]
[1641831553547,7.01096137,136.93,136.72,4.0]
[1641831553748,7.01096137,136.93,136.8,4.0]
[1641831553949,12.42186831,136.8,136.75,4.0]
[1641831554151,7.01096137,136.93,136.79,55.32958]
[1641831554551,7.01096137,136.93,136.83,7.30753773]
[1641831554949,7.01430172,136.87,136.79,55.32958]
[1641831555650,7.31448634,136.85,136.72,7.31314904]
[1641831555850,36.28128948,136.84,136.7,1.827]
[1641831556051,7.31876898,136.77,136.6,4.0]
[1641831556254,7.02004276,136.76,136.67,27.66479]
[1641831556549,27.66479,136.8,136.66,4.14192241]
[1641831556749,4.0,136.79,136.66,4.14192241]
[1641831556951,4.0,136.78,136.66,4.14192241]
[1641831557152,4.0,136.79,136.66,4.14192241]
[1641831557351,29.2847207,136.75,136.66,4.14192241]
[1641831557550,4.0,136.74,136.56,1.828]
[1641831557753,4.0,136.74,136.52,1.829]
[1641831557950,4.0,136.65,136.51,7.32466581]
[1641831558150,31.66479,136.68,136.58,27.66479]
[1641831558352,4.0,136.65,136.58,27.66479]
[1641831558552,4.0,136.62,136.48,1.83]
[1641831558750,7.32976618,136.57,136.43,7.32869183]
[1641831558951,8.42999784,136.66,136.41,7.32976618]
[1641831559150,1.194,136.48,136.36,2.806]
[1641831559349,1.194,136.5,136.45,7.32761779]
[1641831559551,4.0,136.6,136.45,7.32761779]
[1641831559753,1.194,136.55,136.42,2.806]
[1641831559950,1.194,136.56,136.46,7.32708089]
[1641831560150,7.32708089,136.62,136.53,27.66479]
[1641831560151,27.66479,136.62,136.53,27.66479]
[1641831560351,144.74,137.03,136.53,27.66479]
[1641831560550,14.94187153,136.69,136.53,27.66479]
[1641831560751,7.32627569,136.63,136.51,1.829]
[1641831560951,7.32815477,136.6,136.5,27.66479]
[1641831561152,1.194,136.57,136.43,1.83]
[1641831561352,7.33487366,136.47,136.34,1.831]
[1641831561551,1.194,136.49,136.29,2.806]
[1641831561753,4.0,136.46,136.24,14.94000321]
[1641831561951,70.6406,136.61,136.25,1.833]
[1641831562152,11.03276223,136.51,136.4,27.66479]
[1641831562353,7.03276223,136.51,136.4,27.66479]
[1641831562651,4.0,136.46,136.25,1.833]
[1641831562851,7.3370263,136.42,136.3,7.3354117]
[1641831563051,7.03680481,136.43,136.25,1.833]
[1641831563251,4.0,136.29,136.18,7.34160487]
[1641831563452,7.34133539,136.34,136.19,7.34133539]
[1641831563652,7.33891091,136.38,136.23,7.33891091]
[1641831563854,4.0,136.39,136.25,7.3381031]
[1641831564055,14.3763711,136.4,136.25,7.3381031]
[1641831564355,4.0,136.38,136.29,27.66479]
[1641831564554,7.038268,136.4,136.29,27.66479]
[1641831564755,35.00100891,136.43,136.3,1.833]
[1641831564957,4.0,136.5,136.3,1.833]
[1641831565155,11.33057215,136.54,136.39,7.33057215]
[1641831565355,15.2484367,136.47,136.42,7.32869183]
[1641831565555,15.2484367,136.47,136.43,7.32815477]
[1641831565756,15.2484367,136.47,136.3,1.833]
[1641831565955,39.84499075,136.5,136.42,7.32869183]
[1641831566154,39.84499075,136.5,136.43,27.66479]
[1641831566155,46.87828892,136.5,136.43,27.66479]
[1641831566356,0.83041255,136.45,136.43,27.66479]
[1641831566958,8.43471732,136.58,136.44,7.32708089]
[1641831567155,43.84499075,136.63,136.5,7.32439757]
[1641831567355,39.84499075,136.63,136.51,1.83]
[1641831567559,15.22989107,136.61,136.51,1.83]
[1641831567758,22.55670354,136.61,136.51,1.83]
[1641831568056,29.58411431,136.61,136.46,7.32681247]
[1641831568257,22.25730184,136.61,136.55,27.66479]
[1641831568658,29.58438273,136.61,136.55,27.66479]
[1641831568857,4.0,136.59,136.52,26.32958]
[1641831569057,15.22989107,136.63,136.52,26.32958]
[1641831569257,15.22989107,136.63,136.53,1.83]
[1641831569461,15.22989107,136.63,136.62,7.31769785]
[1641831569658,15.22989107,136.63,136.6,9.14830467]
[1641831569859,15.22989107,136.63,136.6,7.31903681]
[1641831570061,15.22989107,136.73,136.61,1.829]
[1641831570259,4.0,136.68,136.64,27.66479]
[1641831570460,4.0,136.65,136.57,7.32064422]
[1641831570659,4.0,136.65,136.54,7.32225232]
[1641831571260,4.0,136.6,136.53,1.83]
[1641831571559,4.0,136.58,136.4,1.83]
[1641831571761,7.02686556,136.62,136.48,7.32547066]
[1641831571961,7.02686556,136.62,136.51,7.32386114]
[1641831572163,4.0,136.6,136.53,34.98757852]
[1641831572666,4.0,136.57,136.51,27.66479]
[1641831572862,4.0,136.59,136.51,27.66479]
[1641831573060,4.0,136.58,136.51,27.66479]
[1641831573260,4.0,136.53,136.34,1.83]
[1641831573460,7.32896039,136.57,136.21,179.0176682]
[1641831573461,4.0,136.5,136.41,7.32922897]
[1641831573662,4.0,136.43,136.33,1.832]
[1641831573865,4.0,136.45,136.33,9.16579781]
[1641831574063,7.33379781,136.48,136.33,7.33379781]
[1641831574363,4.0,136.4,136.38,27.66479]
[1641831574763,31.66479,136.48,136.36,27.66479]
[1641831574966,4.0,136.47,136.36,27.66479]
[1641831575166,27.66479,136.48,136.36,27.66479]
[1641831575365,5.86379232,136.44,136.39,7.33057215]
[1641831575564,7.33299113,136.5,136.39,7.33057215]
[1641831575963,5.86216492,136.47,136.39,7.33057215]
[1641831576363,5.86428642,136.42,136.39,27.66479]
[1641831576765,5.86428642,136.42,136.36,27.66479]
[1641831576964,5.86558666,136.39,136.27,7.33675715]
[1641831577164,4.0,136.37,136.28,1.833]
[1641831577365,4.0,136.29,136.19,1.833]
[1641831577566,5.86975055,136.3,136.2,7.34052705]
[1641831577767,5.86975055,136.3,136.19,1.834]
[1641831577965,7.04089616,136.35,136.19,1.834]
[1641831577966,7.04089616,136.35,136.23,7.33918021]
[1641831578165,5.87043121,136.28,136.23,1.834]
[1641831578365,5.87043121,136.28,136.22,67.50479855]
[1641831578566,5.87043121,136.28,136.2,27.66479]
[1641831578767,4.0,136.21,136.2,27.66479]
[1641831578965,9.8727831,136.23,136.2,27.66479]
[1641831579165,5.8727831,136.23,136.2,27.66479]
[1641831579365,8.0,136.21,136.13,14.94000321]
[1641831579566,5.87521128,136.17,136.09,7.34645901]
[1641831579770,5.87521128,136.17,136.05,14.94000321]
[1641831580370,5.87521128,136.17,136.11,27.66479]
[1641831580970,5.87521128,136.17,136.09,27.66479]
[1641831581169,9.87733026,136.12,136.09,27.66479]
[1641831581368,4.0,136.11,136.09,27.66479]
[1641831581571,4.0,136.1,135.99,7.34969866]
[1641831581771,4.0,136.07,135.95,14.94000321]
[1641831581971,7.05711056,136.04,135.92,18.61701176]
[1641831582170,7.35699834,136.01,135.92,18.61701176]
[1641831582371,27.66479,136.01,135.92,18.61701176]
[1641831582571,4.0,135.93,135.92,18.61701176]
[1641831582873,11.36133093,135.93,135.85,2.52031613]
[1641831583071,4.0,135.86,135.85,2.52031613]
[1641831583270,7.36133093,135.93,135.85,2.52031613]
[1641831583470,4.0,135.9,135.85,2.52031613]
[1641831583670,4.0,136.02,135.85,2.52031613]
[1641831583871,4.0,136.02,135.78,27.06953547]
[1641831583872,12.46766337,136.05,135.78,1.839]
[1641831584171,8.46766337,136.05,135.81,29.43232405]
[1641831584370,4.0,135.96,135.86,7.35699834]
[1641831584570,4.0,135.91,135.83,27.66479]
[1641831584975,7.3594348,135.96,135.83,27.66479]
[1641831585179,7.36214386,135.91,135.76,7.36214386]
[1641831585373,4.0,135.84,135.79,1.839]
[1641831585571,4.0,135.83,135.75,7.36268591]
[1641831585973,4.0,135.82,135.71,1.84]
[1641831586172,7.36756797,135.81,135.66,7.36756797]
[1641831586374,8.0,135.67,135.57,12.60002138]
[1641831586572,4.0,135.7,135.57,10.42584075]
[1641831586772,4.0,135.58,135.57,10.42584075]
[1641831586973,4.0,135.59,135.53,124.50002672]
[1641831587173,5.89536279,135.7,135.49,1.844]
[1641831587374,4.0,135.65,135.38,1.845]
[1641831587577,4.0,135.62,135.38,1.845]
[1641831587774,4.0,135.66,135.38,1.845]
[1641831587977,4.0,135.63,135.38,1.845]
[1641831588176,4.0,135.63,135.55,7.37327189]
[1641831588376,7.06574277,135.87,135.57,27.66479]
[1641831588575,12.481972,135.82,135.57,27.66479]
[1641831588875,4.0,135.75,135.58,1.842]
[1641831589077,7.06574277,135.87,135.59,20.0]
[1641831589281,5.88501788,135.94,135.64,20.0]
[1641831589476,4.0,135.85,135.74,7.36322804]
[1641831589776,4.0,135.8,135.58,1.841]
[1641831589975,5.88889042,135.85,135.6,1.842]
[1641831590175,4.0,135.96,135.58,21.842]
[1641831590375,27.66479,135.88,135.58,1.842]
[1641831590578,4.0,135.82,135.45,73.2723]
[1641831590777,4.0,135.71,135.45,71.4313]
[1641831590976,7.36973985,135.76,135.62,7.36946829]
[1641831591176,4.0,135.84,135.63,1.842]
[1641831591377,1.63011706,135.8,135.54,20.0]
[1641831591675,8.99768503,135.8,135.65,7.36756797]
[1641831592078,8.99768503,135.8,135.66,1.841]
[1641831592281,27.66479,135.78,135.66,29.50579]
[1641831592480,7.3724565,135.71,135.66,1.841]
[1641831592680,4.0,135.69,135.57,1.842]
[1641831592883,7.37435935,135.68,135.53,9.21735935]
[1641831593184,7.37435935,135.68,135.58,4.17086517]
[1641831593381,27.66479,135.78,135.58,4.17086517]
[1641831593582,7.3713696,135.73,135.58,11.54223477]
[1641831593781,27.66479,135.78,135.59,1.842]
[1641831593982,7.37191301,135.72,135.59,1.842]
[1641831594182,27.66479,135.78,135.59,1.842]
[1641831594382,7.37354373,135.69,135.58,4.17086517]
[1641831594682,4.0,135.76,135.58,4.17086517]
[1641831594881,7.36865375,135.78,135.63,7.36865375]
[1641831595082,7.36946829,135.77,135.64,1.842]
[1641831595382,1.63011706,135.8,135.6,1.842]
[1641831595582,4.0,135.68,135.59,1.842]
[1641831595785,11.37327189,135.7,135.58,4.17086517]
[1641831595986,7.37571913,135.65,135.58,4.17086517]
[1641831596384,27.66479,135.63,135.58,4.17086517]
[1641831596585,7.37517516,135.66,135.58,4.17086517]
[1641831596784,7.37191301,135.72,135.58,4.17086517]
[1641831596985,7.37191301,135.72,135.63,7.36892524]
[1641831597284,11.36973985,135.76,135.64,1.842]
[1641831597485,1.62991842,135.83,135.61,1.842]
[1641831597685,7.36892524,135.78,135.63,7.36892524]
[1641831597885,7.36946829,135.77,135.62,7.36946829]
[1641831598085,7.3670252,135.81,135.66,7.3670252]
[1641831598287,27.66479,135.82,135.72,27.66479]
[1641831598793,1.62991842,135.83,135.72,27.66479]
[1641831598986,1.62991842,135.83,135.74,7.36295696]
[1641831599186,1.62991842,135.83,135.75,1.841]
[1641831599989,1.62991842,135.83,135.73,1.841]
[1641831600189,5.88755095,135.88,135.73,1.841]
[1641831600387,35.02747591,135.89,135.79,27.66479]
[1641831600688,27.66479,135.89,135.81,7.359164]
[1641831600893,27.66479,135.89,135.77,27.66479]
[1641831600894,27.66479,135.89,135.82,1.84]
[1641831601087,27.66479,135.89,135.78,1.84]
[1641831601287,40.91295754,135.91,135.78,1.84]
[1641831601488,7.3594348,135.95,135.8,7.3594348]
[1641831601686,7.05955816,135.99,135.81,1.839]
[1641831601886,14.41327007,136.03,135.79,1.84]
[1641831602086,5.87886471,136.09,135.81,5.89043262]
[1641831602286,27.66479,136.03,135.94,7.35213028]
[1641831602491,5.87530953,136.17,135.94,1.838]
[1641831602689,4.0,136.15,135.96,5.88396279]
[1641831602887,7.34645901,136.2,135.97,1.837]
[1641831603087,6.60881938,136.29,136.06,4.0]
[1641831603288,4.0,136.29,136.07,1.835]
[1641831603591,102.0354048,136.37,136.13,4.0]
[1641831603789,4.0,136.38,136.14,1.834]
[1641831603987,43.39878264,136.41,136.18,4.0]
[1641831604188,68.74796453,136.41,136.25,4.0]
[1641831604392,27.66479,136.35,136.29,4.0]
[1641831604590,58.66388523,136.45,136.31,4.0]
[1641831604789,7.33272227,136.47,136.32,7.33245344]
[1641831604989,39.39878264,136.51,136.33,7.33191583]
[1641831604990,7.33191583,136.49,136.33,7.33191583]
[1641831605189,39.39878264,136.51,136.3,4.0]
[1641831605390,7.33352889,136.46,136.31,9.16499113]
[1641831605588,7.33299113,136.47,136.25,4.0]
[1641831605589,4.0,136.47,136.25,4.0]
[1641831605790,7.3313783,136.5,136.34,7.3313783]
[1641831605992,39.39878264,136.51,136.32,4.0]
[1641831606192,39.39878264,136.51,136.39,4.0]
[1641831606490,39.39878264,136.51,136.38,4.0]
[1641831606491,27.66479,136.49,136.38,4.0]
[1641831606690,39.39878264,136.6,136.46,7.32493408]
[1641831606892,39.39878264,136.6,136.37,1.832]
[1641831607291,39.39878264,136.62,136.5,7.32278852]
[1641831607492,39.39878264,136.62,136.47,7.32439757]
[1641831607493,43.39878264,136.62,136.51,1.83]
[1641831607691,43.39878264,136.62,136.48,1.83]
[1641831607692,7.32573898,136.6,136.48,1.83]
[1641831607992,39.39878264,136.62,136.44,20.0]
[1641831608191,39.39878264,136.62,136.45,1.831]
[1641831608392,58.66388523,136.66,136.61,27.66479]
[1641831608693,39.39878264,136.75,136.61,27.65617463]
[1641831609392,4.0,136.79,136.68,7.31314904]
[1641831609592,4.0,136.79,136.61,27.65617463]
[1641831609593,43.39878264,136.89,136.62,1.829]
[1641831609793,4.0,136.83,136.62,1.829]
[1641831609998,4.0,136.83,136.73,7.31074314]
[1641831610192,4.0,136.83,136.77,7.30860588]
[1641831610393,4.0,136.83,136.75,27.66479]
[1641831610692,39.39878264,136.89,136.75,27.66479]
[1641831610892,4.0,136.87,136.77,7.30833881]
[1641831611093,4.0,136.83,136.71,7.31181223]
[1641831611296,27.66479,136.9,136.72,1.827]
[1641831611494,7.31395136,136.82,136.67,7.31395136]
[1641831611696,11.31528895,136.8,136.65,1.827]
[1641831611894,7.31528895,136.8,136.65,1.827]
[1641831612095,4.0,136.79,136.65,1.827]
[1641831612297,27.66479,136.7,136.63,27.66479]
[1641831612595,27.66479,136.7,136.62,1.827]
[1641831612796,27.66479,136.72,136.61,27.66479]
[1641831612994,4.0,136.79,136.61,27.66479]
[1641831613196,11.31421884,136.82,136.66,7.31421884]
[1641831613494,4.0,136.78,136.66,7.31421884]
[1641831613696,5.84468687,136.88,136.61,27.66479]
[1641831613697,4.0,136.81,136.7,7.31207956]
[1641831613898,4.0,136.81,136.75,7.30967435]
[1641831614095,4.0,136.85,136.77,7.30860588]
[1641831614297,27.66479,136.91,136.8,27.66479]
[1641831614498,27.66479,136.91,136.8,7.30673681]
[1641831614700,27.66479,136.91,136.76,7.30887297]
[1641831614897,4.0,136.81,136.76,7.30887297]
[1641831615097,27.66479,136.91,136.73,1.827]
[1641831615098,4.0,136.78,136.73,1.827]
[1641831615296,29.25794536,136.84,136.71,1.828]
[1641831615496,4.0,136.75,136.71,1.828]
[1641831615696,4.0,136.72,136.65,1.828]
[1641831615896,4.0,136.67,136.6,1.829]
[1641831616097,4.0,136.77,136.5,1.83]
[1641831616298,27.66479,136.76,136.65,27.66479]
[1641831616598,31.66479,136.76,136.68,7.31314904]
[1641831616796,31.66479,136.76,136.66,1.828]
[1641831616797,4.0,136.74,136.66,1.828]
[1641831616998,27.66479,136.76,136.64,1.828]
[1641831617203,27.66479,136.76,136.63,1.829]
[1641831617204,4.0,136.7,136.63,1.829]
[1641831617396,4.0,136.71,136.61,1.828]
[1641831617597,4.0,136.75,136.62,4.14439216]
[1641831617798,31.66479,136.76,136.64,7.31555653]
[1641831617996,31.66479,136.76,136.68,7.31341646]
[1641831618197,4.0,136.75,136.68,7.31341646]
[1641831618396,4.0,136.74,136.66,1.828]
[1641831618597,4.0,136.74,136.63,1.829]
[1641831618798,4.0,136.74,136.65,7.31475386]
[1641831618997,4.0,136.66,136.62,31.80918216]
[1641831619202,4.0,136.65,136.62,4.14439216]
[1641831619599,5.85290948,136.69,136.62,4.14439216]
[1641831619799,4.0,136.63,136.62,4.14439216]
[1641831619998,4.0,136.67,136.62,4.14439216]
[1641831620198,4.0,136.63,136.62,4.14439216]
[1641831620600,27.66479,136.64,136.62,4.14439216]
[1641831620803,4.0,136.69,136.62,4.14439216]
[1641831621000,4.0,136.75,136.63,7.31555653]
[1641831621201,4.0,136.75,136.63,1.828]
[1641831621401,4.0,136.74,136.63,1.828]
[1641831621603,2.02038062,136.76,136.63,1.828]
[1641831621805,4.0,136.74,136.66,7.31448634]
[1641831622005,4.0,136.73,136.67,1.828]
[1641831622205,11.31796561,136.75,136.63,9.14482413]
[1641831622405,27.66479,136.64,136.62,4.14461409]
[1641831622805,31.66479,136.64,136.62,4.14461409]
[1641831623006,27.66479,136.64,136.62,4.14461409]
[1641831623207,31.66479,136.64,136.62,4.14461409]
[1641831623605,4.0,136.68,136.62,4.14461409]
[1641831623805,3.70826114,136.86,136.62,4.14461409]
[1641831624004,7.31475386,136.81,136.65,7.31475386]
[1641831624207,7.31528895,136.8,136.66,1.827]
[1641831624407,27.66479,136.68,136.66,1.827]
[1641831624609,27.66479,136.68,136.63,5.828]
[1641831624808,27.66479,136.68,136.62,4.14461409]
[1641831625208,27.66479,136.68,136.62,8.14461409]
[1641831625707,27.66479,136.68,136.62,4.14461409]
[1641831626309,27.66479,136.63,136.62,4.14461409]
[1641831627010,27.66479,136.63,136.54,1.829]
[1641831627309,27.66479,136.63,136.53,13.15118017]
[1641831627510,34.98891934,136.63,136.53,1.83]
[1641831627709,34.98891934,136.63,136.49,1.83]
[1641831627909,27.66479,136.63,136.54,7.32091219]
[1641831628108,27.66479,136.63,136.52,7.32198426]
[1641831628309,27.66479,136.59,136.5,9.15305664]
[1641831628608,27.66479,136.59,136.5,7.32278852]
[1641831628811,27.66479,136.59,136.51,1.83]
[1641831629009,27.66479,136.59,136.47,7.32439757]
[1641831629209,27.66479,136.59,136.47,9.15539757]
[1641831629613,5.8584033,136.56,136.47,1.831]
[1641831629814,5.85897789,136.55,136.42,9.15808089]
[1641831630014,13.18766972,136.55,136.41,1.831]
[1641831630214,5.86036332,136.52,136.37,4.0]
[1641831630413,27.66479,136.42,136.36,5.831]
[1641831630614,27.66479,136.42,136.37,7.32976618]
[1641831630813,27.66479,136.42,136.4,4.0]
[1641831631013,27.66479,136.42,136.37,7.32976618]
[1641831631014,27.66479,136.42,136.37,4.0]
[1641831631317,27.66479,136.42,136.4,4.0]
[1641831631517,27.66479,136.44,136.4,4.0]
[1641831631715,27.66479,136.44,136.36,1.832]
[1641831631919,27.66479,136.44,136.37,7.32976618]
[1641831632117,27.66479,136.44,136.39,4.0]
[1641831632316,27.66479,136.44,136.37,7.32976618]
[1641831632516,27.66479,136.44,136.4,4.0]
[1641831632717,7.32815477,136.56,136.4,11.32815477]
[1641831632916,29.2997363,136.64,136.5,4.0]
[1641831633117,29.2997363,136.64,136.44,4.0]
[1641831633118,23.04007115,136.66,136.49,4.0]
[1641831633316,23.04007115,136.66,136.51,4.0]
[1641831633516,23.04007115,136.66,136.58,4.0]
[1641831633716,23.04007115,136.66,136.48,4.0]
[1641831633918,23.04007115,136.66,136.53,1.83]
[1641831634117,8.42969183,136.66,136.51,11.32439757]
[1641831634317,5.85579464,136.62,136.51,4.0]
[1641831634519,27.66479,136.56,136.51,4.0]
[1641831634717,27.66479,136.56,136.46,33.49479]
[1641831634918,27.66479,136.56,136.53,7.32359295]
[1641831635316,27.66479,136.56,136.51,4.0]
[1641831635616,14.61037932,136.65,136.55,4.0]
[1641831635818,14.61037932,136.65,136.64,7.3171624]
[1641831636019,14.61037932,136.65,136.64,4.0]
[1641831636221,39.39878264,136.68,136.64,8.0]
[1641831636519,39.39878264,136.68,136.67,4.0]
[1641831636721,98.0354048,136.76,136.67,4.0]
[1641831636722,61.69929003,136.76,136.75,5.85009]
[1641831636921,126.1390684,136.8,136.75,35.67809]
[1641831637225,48.35543337,136.85,136.79,43.71266786]
[1641831637422,11.84743337,136.85,136.84,8.0]
[1641831637622,42.73929003,136.89,136.84,9.826]
[1641831637822,24.89827491,136.9,136.88,28.0]
[1641831638022,22.95555662,136.91,136.89,15.29048956]
[1641831638322,22.95555662,136.91,136.88,20.0]
[1641831638323,5.83139775,137.19,136.87,4.0]
[1641831638522,5.83139775,137.19,137.0,4.0]
[1641831638726,126.1390684,137.23,136.99,4.0]
[1641831638924,126.1390684,137.23,137.03,4.0]
[1641831639124,158.36005781,137.28,136.9,55.32958]
[1641831639125,158.36005781,137.28,137.09,4.0]
[1641831639324,10.23272399,137.35,137.09,4.0]
[1641831639524,7.29075532,137.3,137.09,7.29075532]
[1641831639924,5.82574863,137.33,137.04,4.0]
[1641831640126,7.29368003,137.24,137.09,7.29368003]
[1641831640324,7.29288215,137.26,137.09,7.29288215]
[1641831640525,27.66479,137.18,137.09,7.29288215]
[1641831641125,27.66479,137.18,136.98,5.823]
[1641831641325,27.66479,137.18,137.06,4.0]
[1641831641526,27.66479,137.18,136.94,4.0]
[1641831641725,27.66479,137.18,136.99,4.0]
[1641831642329,7.29713952,137.17,137.01,7.29713952]
[1641831642628,5.83058872,137.21,137.06,7.29447808]
[1641831642828,7.29261623,137.25,137.09,7.29261623]
[1641831643427,6.99210976,137.3,136.98,1.823]
[1641831643627,7.29501021,137.21,137.05,7.29501021]
[1641831644027,7.29341405,137.24,137.08,7.29341405]
[1641831644427,27.66479,137.16,137.08,7.29341405]
[1641831644932,27.66479,137.16,137.04,7.29554242]
[1641831645427,27.66479,137.16,137.0,4.13276729]
[1641831645828,27.66479,137.16,137.02,7.29660708]
[1641831646030,7.29820464,137.15,137.0,4.13276729]
[1641831646435,30.66479,137.1,137.0,4.13276729]
[1641831646631,5.83636395,137.08,137.0,4.13276729]
[1641831646831,7.30433512,137.03,136.88,29.2109395]
[1641831647130,5.83954748,137.0,136.88,29.2109395]
[1641831647731,5.84121642,136.96,136.82,4.0]
[1641831647930,7.00700657,137.01,136.84,4.0]
[1641831648132,5.83863663,137.02,136.84,4.0]
[1641831648329,5.83863663,137.02,136.8,1.825]
[1641831648330,8.0,136.99,136.8,5.825]
[1641831648534,27.66479,137.0,136.86,27.66479]
[1641831648731,27.66479,137.0,136.92,7.30193501]
[1641831649031,5.84137498,136.96,136.85,7.3056692]
[1641831649231,7.01223335,136.91,136.82,7.30753773]
[1641831649432,7.01223335,136.91,136.79,29.2301509]
[1641831649731,5.84447121,136.89,136.7,5.826]
[1641831649930,5.84447121,136.89,136.62,61.31570495]
[1641831650134,5.84877727,136.79,136.72,7.31288164]
[1641831650332,5.84877727,136.79,136.62,63.48870495]
[1641831650532,5.85089335,136.74,136.63,27.66479]
[1641831650735,5.85089335,136.74,136.63,34.98222012]
[1641831650933,27.66479,136.77,136.63,27.66479]
[1641831651133,27.66479,136.77,136.65,4.0]
[1641831651335,27.66479,136.77,136.6,1.828]
[1641831651535,27.66479,136.77,136.54,59.48870495]
[1641831651536,5.85175924,136.72,136.54,59.48870495]
[1641831651736,5.85175924,136.72,136.63,7.31743012]
[1641831651934,5.852902,136.69,136.63,7.31743012]
[1641831652134,5.85020962,136.75,136.58,4.0]
[1641831652334,5.85020962,136.75,136.66,7.31582413]
[1641831652535,1.77951785,136.72,136.59,27.66479]
[1641831652736,1.77951785,136.72,136.61,7.31850117]
[1641831653136,1.77951785,136.72,136.59,27.66479]
[1641831653335,5.85274628,136.69,136.51,11.8334147]
[1641831653535,7.32332479,136.68,136.53,7.32278852]
[1641831653837,5.85274628,136.69,136.47,4.0]